[Event "45th FIDE Olympiad 2024"]
[Site "Budapest"]
[Date "2024.09.16"]
[Round "6.31"]
[White "Piorun, Kacper"]
[Black "Horvath, Dominik"]
[Result "1/2-1/2"]
[ECO "D85"]
[WhiteElo "2599"]
[BlackElo "2559"]
[Annotator "TA"]
[PlyCount "124"]
[EventDate "2024.09.05"]
[EventType "team-tourn"]
[EventCountry "HUN"]
[SourceTitle "playchess.com"]
[Source "ChessBase"]
[SourceQuality "1"]
[WhiteTeam "Poland"]
[BlackTeam "Austria"]
[WhiteTeamCountry "POL"]
[BlackTeamCountry "AUT"]
[TimeControl "40/5400+30:1800+30"]

{[%evp 79,124,-427,-1041,-1193,-614,-1132,-984,-245,-287,-1211,-260,-1000,-1000,-1005,-1008,-1008,-1036,-1059,-168,-2034,-1547,-29969,-1334,-29969,-29969,-29966,-29966,-29974,-29976,-29975,0,0,0,0,0,0,0,0,0,0,0,0,0,0,0,0,0]} 1. d4 {[%emt 0:00:06]} Nf6 {[%emt 0:00:07]} 2. c4 {[%emt 0:00:04]} g6 {[%emt 0:00:03]} 3. Nc3 {[%emt 0:00:48]} d5 {[%emt 0:00:06]} 4. cxd5 {[%emt 0:00:09]} Nxd5 {[%emt 0:00:05]} 5. e4 {[%emt 0:00:07]} Nxc3 {[%emt 0:00:04]} 6. bxc3 {[%emt 0:00:04]} Bg7 {[%emt 0:00:05]} 7. Qa4+ {[%emt 0:00:34]} Nd7 {[%emt 0:00:10]} 8. Nf3 {[%emt 0:00:25]} O-O {[%emt 0:00:07]} 9. Be2 {[%emt 0:00:33] 9.Qa3 is more fashionable.} c5 {[%emt 0:02:06]} 10. Qa3 {[%emt 0:00:09] D85: Exchange Grünfeld: Unusual White 7th moves and lines with 7 Nf3.} cxd4 {[%emt 0:03:18]} 11. cxd4 {[%emt 0:00:06]} Nf6 {[%emt 0:00:03]} 12. Qe3 {[%emt 0:07:14]} b5 {[%emt 0:00:08]} 13. h3 {[%emt 0:19:36]} Qb6 {[%emt 0:13:02]} 14. O-O {[%emt 0:01:48]} a5 {[%emt 0:00:26]} 15. Bd2 $146 {[%emt 0:08:24]} ({Predecessor:} 15. a3 Bb7 16. Bd3 Rfc8 17. Re1 e6 18. Rb1 b4 19. axb4 axb4 20. d5 Qxe3 21. Bxe3 exd5 {½-½ Baciak,M (2273)-Tylecek,D (2209) SVK-ch25 sf2 email 2020}) 15... b4 {[%emt 0:01:34]} 16. Rfb1 {[%emt 0:05:23]} Ba6 {[%emt 0:05:30]} 17. a3 {[%emt 0:03:54]} Bxe2 {[%emt 0:02:51]} 18. Qxe2 {[%emt 0:00:02]} Qb7 {[%emt 0:22:29]} 19. e5 {[%emt 0:04:16]} Nd5 {[%emt 0:00:19]} 20. Qe4 {[%emt 0:00:24]} Rfb8 {[%emt 0:09:00]} 21. h4 {[%emt 0:04:42]} h5 {[%emt 0:03:37]} 22. Ng5 {[%emt 0:04:10]} f5 {[%emt 0:21:45]} 23. Qf3 {[%emt 0:11:03]} Bh6 {[%emt 0:01:12]} 24. Qg3 {[%emt 0:00:20]} Bxg5 {[%emt 0:01:36]} 25. Qxg5 {[%emt 0:00:06]} Ra6 {[%emt 0:01:48]} 26. axb4 {[%emt 0:14:32]} axb4 {[%emt 0:00:05]} 27. Rxa6 {[%emt 0:01:32]} Qxa6 {[%emt 0:00:03]} 28. Rb3 {[%emt 0:00:03]} Rb6 {[%emt 0:01:17]} 29. Kh2 {[%emt 0:03:19]} Qc4 {[%emt 0:05:30]} 30. Rg3 {[%emt 0:01:25]} Kf7 {[%emt 0:01:59]} 31. Qh6 {[%emt 0:00:22]} Qxd4 {[%emt 0:00:17]} 32. Qh7+ {[%emt 0:00:11]} Ke6 {[%emt 0:00:58]} 33. Rxg6+ {[%emt 0:08:37]} Kxe5 {[%emt 0:00:58]} 34. f4+ {[%emt 0:01:17]} Ke4 {[%emt 0:00:23]} 35. Rxb6 {[%emt 0:00:09]} Qxb6 {[%emt 0:01:04]} 36. Qxh5 {[%emt 0:01:16]} Qf2 {[%emt 0:00:03]} 37. Qd1 {[%emt 0:00:16]} b3 {[%emt 0:02:23]} 38. Qc1 {[%emt 0:01:15]} Kd3 {[%emt 0:00:23]} 39. Qc6 {[%emt 0:00:20]} Kxd2 {[%emt 0:02:06]} 40. Qxd5+ {[%emt 0:00:04]} Kc3 {[%emt 0:00:21]} 41. Qa5+ {[%emt 0:04:30]} Kc2 {[%emt 0:02:15]} 42. Qxf5+ {[%emt 0:00:07]} Kc1 {[%emt 0:00:03]} 43. Qc8+ {[%emt 0:00:24]} Qc2 {[%emt 0:01:15]} 44. Qe6 {[%emt 0:00:43]} b2 $2 {[%emt 0:02:05]} (44... Qc3 {( -> ...b2)} 45. Qe2 b2 46. Qf1+ Kd2 47. Qf2+ Kd3 48. Qg3+ Kc2 49. Qf2+ Qd2 50. Qc5+ Kd1 51. Qh5+ Qe2 52. Qd5+ Kc1 53. Qc5+ Qc2 54. Qe3+ Kd1 (54... Qd2 55. Qg1+ Kc2 56. Qc5+ Kd1 57. Qh5+ Kc1 58. Qc5+ Qc2 59. Qe3+ Kd1 60. Qf3+ Kd2 61. Qf2+ Kd3 62. Qg3+ Kc4 63. Qg8+ Kb4 64. Qb8+ Kc3 65. Qe5+ Kd2 66. Qa5+ Kd1 67. Qd5+ Kc1 68. Qa5 $19) 55. Qf3+ Kd2 56. Qf2+ Kd3 57. Qg3+ Kc4) 45. Qe1+ $19 {[%emt 0:00:03]} Qd1 {[%emt 0:00:02]} 46. Qc3+ {[%emt 0:00:04]} Kb1 {[%emt 0:00:04]} 47. Qc4 {[%emt 0:15:41]} Qc2 {[%emt 0:04:49]} 48. Qe6 {[%emt 0:00:11]} Qa4 $2 {[%emt 0:04:50]} (48... Qc5 {White must now prevent ...Qc3.} 49. Qe1+ Kc2 50. Qe2+ Kb3 51. Qd3+ Qc3 52. Qb5+ Kc2 53. Qe2+ Kc1 54. Qf1+ Kd2 55. Qf2+ Kd3 56. Qg3+ Kc2 57. Qf2+ Qd2 58. Qc5+ Kd1 59. Qh5+ Kc1 60. Qc5+ Qc2 61. Qg1+ Kd2 62. Qf2+ Kd3 63. Qg3+ Kc4 64. Qg8+ Kc3 65. Qg3+ Qd3 66. Qe1+ Kb3 67. Qxe7 b1=Q (67... b1=B 68. Qe6+ Kb2 69. Qe1 $16)) 49. Qe5 $2 {[%emt 0:05:41]} (49. Qxe7 Qxf4+ 50. Kh1) 49... Qc4 $19 {[%emt 0:08:34]} 50. h5 {[%emt 0:04:19] [#]} Ka2 $1 {[%emt 0:04:41]} 51. Qa5+ {[%emt 0:00:06]} Kb3 {[%emt 0:00:08]} 52. Qb6+ {[%emt 0:00:04] [#]} Kc3 $1 {[%emt 0:00:53]} 53. h6 {[%emt 0:01:33]} Qxf4+ {[%emt 0:00:16]} 54. g3 {[%emt 0:00:01]} Qf5 $2 {[%emt 0:04:18]} (54... Qd2+ {mates} 55. Kh3 e5 56. Qc6+ Kd3 57. Qd5+ Kc2 58. Qc6+ Qc3 59. Qg2+ Qd2 60. Qc6+ Qc3 61. Qg2+ Qd2 62. Qc6+) 55. Qe3+ $11 {[%emt 0:02:00]} Kc2 {[%emt 0:00:44]} 56. Qe2+ {[%emt 0:00:08]} Kb3 {[%emt 0:00:39]} 57. Qe3+ {[%emt 0:00:08]} Ka2 {[%emt 0:00:23]} 58. Qa7+ {[%emt 0:01:53]} Kb1 {[%emt 0:00:09]} (58... Kb3 $5 59. Qe3+ $8 Ka2 60. Qa7+ Kb1 $11) 59. Qxe7 {[%emt 0:00:51]} Qh5+ {[%emt 0:00:08]} 60. Qh4 {[%emt 0:00:13]} Qe2+ {[%emt 0:00:04]} 61. Kh3 {[%emt 0:00:03]} Qe6+ {[%emt 0:00:41]} 62. Kh2 {[%emt 0:00:57]} Qe2+ {[%emt 0:00:36]} (62... Kc2 $5 63. Qa4+ $8 Kc1 64. Qf4+ Kc2 65. Qa4+ Kd2 66. Qb4+ Kc2 67. Qc5+ Kd1 68. Qh5+ Ke1 69. Qa5+ Kd1 70. Qa4+ Kd2 71. Qb4+ Kc2 72. Qc5+ Kb3 73. Qb5+ Ka3 $11) 1/2-1/2

[Event "45th FIDE Olympiad 2024"]
[Site "Budapest"]
[Date "2024.09.16"]
[Round "6.31"]
[White "Wong, Kai Meng"]
[Black "Soliz Gabarrete, Luis Fernando"]
[Result "0-1"]
[WhiteElo "1795"]
[BlackElo "1920"]
[PlyCount "104"]
[EventDate "2024.09.05"]
[EventType "team-tourn"]
[EventCountry "HUN"]
[WhiteTeam "Macau"]
[BlackTeam "Honduras"]
[WhiteTeamCountry "MAC"]
[BlackTeamCountry "HON"]
[TimeControl "40/5400+30:1800+30"]

1. d4 d5 2. c4 e6 3. a3 Nf6 4. Nf3 c6 5. e3 Nbd7 6. Nc3 Bd6 7. Bd3 O-O 8. O-O dxc4 9. Bxc4 b5 10. Bd3 a6 11. e4 e5 12. Bg5 h6 13. Bh4 Re8 14. Re1 c5 15. dxc5 Nxc5 16. Nd5 g5 17. Nxf6+ Qxf6 18. Bg3 Bg4 19. Bc2 Bxf3 20. Qxf3 Qxf3 21. gxf3 Ne6 22. Kg2 Nd4 23. Bd3 Kg7 24. h4 f6 25. Rad1 Rad8 26. Bb1 Bc5 27. Ba2 Nc2 28. Rh1 Rxd1 29. Rxd1 Nd4 30. hxg5 hxg5 31. Bd5 Re7 32. Rc1 Rc7 33. f4 exf4 34. Bh2 Bd6 35. Rxc7+ Bxc7 36. f3 g4 37. Bg1 Nxf3 38. Bc5 Nh4+ 39. Kf1 g3 40. Bb7 a5 41. b4 f3 42. bxa5 g2+ 43. Kf2 Bh2 44. Ke1 Bg3+ 45. Kd2 f2 46. a6 g1=Q 47. a7 Qe1+ 48. Kc2 f1=Q 49. Bf8+ Kxf8 50. a8=Q+ Kg7 51. Bd5 Qb1+ 52. Kc3 Qfd3# {0-} 0-1

[Event "45th FIDE Olympiad 2024"]
[Site "Budapest"]
[Date "2024.09.16"]
[Round "6.32"]
[White "Blohberger, Felix"]
[Black "Gumularz, Szymon"]
[Result "1/2-1/2"]
[ECO "E16"]
[WhiteElo "2520"]
[BlackElo "2571"]
[Annotator "TA"]
[PlyCount "129"]
[EventDate "2024.09.05"]
[EventType "team-tourn"]
[EventCountry "HUN"]
[SourceTitle "playchess.com"]
[Source "ChessBase"]
[SourceQuality "1"]
[WhiteTeam "Austria"]
[BlackTeam "Poland"]
[WhiteTeamCountry "AUT"]
[BlackTeamCountry "POL"]
[TimeControl "40/5400+30:1800+30"]

{[%evp 16,129,39,31,34,19,27,34,31,22,30,29,27,30,39,36,42,41,37,38,54,38,62,43,49,49,44,44,48,55,60,41,58,50,67,62,73,61,71,63,79,69,82,62,64,62,60,59,62,62,81,79,123,77,79,0,134,134,114,118,115,126,125,120,143,142,148,125,114,110,114,107,131,85,93,84,119,119,130,124,132,90,98,72,81,81,80,76,68,63,70,54,55,57,64,62,61,52,72,72,65,65,72,0,59,62,83,64,58,55,63,55,59,21,41,52]} 1. d4 {[%emt 0:00:04]} Nf6 {[%emt 0:00:14]} 2. c4 {[%emt 0:00:08]} e6 {[%emt 0:00:11]} 3. Nf3 {[%emt 0:00:05]} b6 {[%emt 0:00:05]} 4. g3 {[%emt 0:00:08]} Bb7 {[%emt 0:00:06]} 5. Bg2 {[%emt 0:00:06]} Bb4+ {[%emt 0:00:04]} 6. Bd2 {[%emt 0:00:07]} a5 {[%emt 0:00:05]} 7. O-O {[%emt 0:00:49]} O-O {[%emt 0:00:21]} 8. Bg5 {[%emt 0:05:24]} Be7 {[%emt 0:00:13]} 9. Qc2 {[%emt 0:01:14]} Be4 {[%emt 0:20:29]} 10. Qd2 {[%emt 0:06:49]} Bb7 {[%emt 0:00:49]} 11. Nc3 {[%emt 0:05:03]} Ne4 {[%emt 0:01:30]} 12. Nxe4 {[%emt 0:00:55]} Bxe4 {[%emt 0:00:05]} 13. Bxe7 {[%emt 0:00:15]} Qxe7 {[%emt 0:00:03]} 14. Qf4 {[%emt 0:00:37][%csl LRc7,LRe4]} d5 {[%emt 0:01:01]} 15. cxd5 {[%emt 0:14:39]} exd5 {[%emt 0:01:33]} 16. Rac1 {[%emt 0:00:57]} Ra7 {[%emt 0:06:25]} 17. Rfd1 {[%emt 0:08:12]} Rd8 {[%emt 0:05:15]} 18. e3 {[%emt 0:15:55]} Rd6 {[%emt 0:08:14]} 19. Ne5 {[%emt 0:03:51]} (19. Nh4 {looks sharper.} Rf6 20. Qg4 Bxg2 21. Qc8+) 19... Bxg2 {[%emt 0:00:31]} 20. Kxg2 {[%emt 0:00:06]} f6 {[%emt 0:00:43]} 21. Nd3 {[%emt 0:01:38]} Nc6 {[%emt 0:02:51]} 22. Qf3 {[%emt 0:03:20][%cal Oc1c6] Hoping for Rxc6!} Qd7 {[%emt 0:04:47]} 23. h4 {[%emt 0:02:38]} Ne7 {[%emt 0:04:29]} 24. Rc3 {[%emt 0:01:20]} c6 {[%emt 0:02:08]} 25. Rdc1 {[%emt 0:00:37]} Ra8 {[%emt 0:10:10][%cal Ba7a8,Ba8e8,Be8e4][%mdl 32]} 26. h5 {[%emt 0:01:43]} Re8 {[%emt 0:01:32]} 27. Rb3 {[%emt 0:02:51]} Nc8 {[%emt 0:00:26]} 28. Nf4 {[%emt 0:00:40]} Re4 {[%emt 0:04:50]} 29. Ne2 {[%emt 0:01:59]} Re8 {[%emt 0:00:29]} 30. Rbc3 {[%emt 0:02:09]} Ne7 {[%emt 0:00:30]} 31. Nf4 {[%emt 0:04:34]} Kh8 {[%emt 0:09:42]} 32. Qd1 {[%emt 0:00:39]} Nf5 {[%emt 0:03:18]} 33. Qc2 {[%emt 0:02:52]} Rc8 {[%emt 0:00:38]} 34. Qb3 {[%emt 0:01:14]} ({White should play} 34. a3) 34... Rb8 $16 {[%emt 0:00:33]} 35. Qc2 {[%emt 0:01:05]} ({Better is} 35. a3) 35... Rc8 {[%emt 0:04:16] [#]} 36. a3 $1 {[%emt 0:00:34]} Ne7 {[%emt 0:01:51]} 37. b4 {[%emt 0:01:02]} axb4 {[%emt 0:00:04]} 38. axb4 {[%emt 0:00:04]} b5 {[%emt 0:00:05]} 39. Ra3 {[%emt 0:00:47] Repels Qa7} Qe8 {[%emt 0:01:57]} 40. Rca1 {[%emt 0:07:09]} Rd7 {[%emt 0:00:07]} 41. Ra6 {[%emt 0:10:21]} Kg8 {[%emt 0:02:10]} 42. Qc5 {[%emt 0:07:03]} Kf7 {[%emt 0:04:18]} 43. Ra7 {[%emt 0:01:27] White has more active pieces.} Rxa7 {[%emt 0:12:01]} 44. Qxa7 {[%emt 0:05:18]} (44. Rxa7 $142 {Threatens to win with Qd6.} Ra8 45. Ra5) 44... Qd8 {[%emt 0:00:47]} 45. Ra6 {[%emt 0:04:35]} Qc7 {[%emt 0:01:34]} 46. Qc5 {[%emt 0:02:52][%cal Oe3e4] Black must now prevent e4!} Qd7 {[%emt 0:00:10]} 47. Qb6 {[%emt 0:00:48]} Qc7 {[%emt 0:00:33]} 48. Qxc7 {[%emt 0:01:11]} Rxc7 {[%emt 0:00:05][%mdl 4096] Endgame. KRN-KRN} 49. Ra8 {[%emt 0:00:24]} g5 {[%emt 0:01:56]} 50. hxg6+ {[%emt 0:00:06]} hxg6 {[%emt 0:00:02]} 51. g4 {[%emt 0:00:21]} Nc8 {[%emt 0:05:57]} 52. Nd3 {[%emt 0:00:38]} Nb6 {[%emt 0:02:25]} 53. Ra6 {[%emt 0:00:21]} Nc4 {[%emt 0:00:18]} 54. Kg3 {[%emt 0:00:19]} g5 {[%emt 0:00:33]} 55. Nc5 {[%emt 0:00:28]} Nd6 {[%emt 0:00:46]} 56. Ra8 {[%emt 0:00:34]} Kg6 {[%emt 0:03:48]} 57. Kg2 {[%emt 0:03:03]} Kf7 {[%emt 0:01:40]} 58. Na6 {[%emt 0:00:30]} Rb7 {[%emt 0:00:49]} 59. Nc5 {[%emt 0:00:58]} Rc7 {[%emt 0:00:01]} 60. Kf3 {[%emt 0:00:24]} Kg6 {[%emt 0:00:27]} 61. Ke2 {[%emt 0:00:37]} Kf7 {[%emt 0:01:19]} 62. Kd3 {[%emt 0:00:40]} f5 {[%emt 0:03:32]} 63. gxf5 {[%emt 0:00:26]} Nxf5 {[%emt 0:00:01]} 64. Ke2 {[%emt 0:00:32]} g4 $1 {[%emt 0:01:39]} 65. Nd3 {[%emt 0:01:39] White really could win this.   Weighted Error Value: White=0.11 (very precise) /Black=0.07 (flawless) .  Mistake:       	White=3     	---        Inaccurate:     	White=2     	Black=2      OK:         	White=19    	Black=21     Best:        	White=1     	Black=1      Strong:       	---       	Black=1} 1/2-1/2

[Event "45th FIDE Olympiad 2024"]
[Site "Budapest"]
[Date "2024.09.16"]
[Round "6.33"]
[White "Suleymanli, Aydin"]
[Black "Stremavicius, Titas"]
[Result "1/2-1/2"]
[ECO "B40"]
[WhiteElo "2632"]
[BlackElo "2527"]
[Annotator "TA"]
[PlyCount "124"]
[EventDate "2024.09.05"]
[EventType "team-tourn"]
[EventCountry "HUN"]
[SourceTitle "playchess.com"]
[Source "ChessBase"]
[SourceQuality "1"]
[WhiteTeam "Azerbaijan"]
[BlackTeam "Lithuania"]
[WhiteTeamCountry "AZE"]
[BlackTeamCountry "LTU"]
[TimeControl "40/5400+30:1800+30"]

{[%evp 55,124,93,88,86,75,97,93,81,79,80,87,72,51,0,0,0,0,-222,-222,-222,-60,-60,0,-614,-8,-5,-8,-7,-5,-4,-4,-4,-4,-4,-12,-9,-10,-8,-9,-43,-50,-34,-47,-27,-43,-63,-63,-63,-63,-63,-63,-118,-63,-63,-16,-63,-63,-63,-16,-16,-16,-16,-16,-16,-16,-16,0,0,0,0,0]} 1. e4 {[%emt 0:00:06]} c5 {[%emt 0:00:08]} 2. Nf3 {[%emt 0:00:08]} e6 {[%emt 0:00:07]} 3. d4 {[%emt 0:00:05]} cxd4 {[%emt 0:00:04]} 4. Nxd4 {[%emt 0:00:04]} Nf6 {[%emt 0:00:11]} 5. Bd3 {[%emt 0:00:07]} Nc6 {[%emt 0:01:34]} 6. Nxc6 {[%emt 0:00:09]} bxc6 {[%emt 0:00:07]} 7. Bf4 {[%emt 0:00:12] B40: Sicilian: 2...e6, Unusual lines.} d5 {[%emt 0:06:57]} 8. Nd2 {[%emt 0:02:24]} Nd7 {[%emt 0:03:48]} 9. O-O {[%emt 0:20:06]} Be7 {[%emt 0:07:56]} 10. e5 {[%emt 0:05:59]} Nc5 $146 {[%emt 0:05:50]} ({Predecessor:} 10... a5 11. Re1 Ba6 12. Qg4 g6 13. Nf3 Bxd3 14. cxd3 Rb8 15. b3 Rb4 16. d4 c5 {1-0 Abdusattorov,N (2762)-Dosmukhambetov,A (1976) FIDE World Bl Team Pool A blitz 2024 (4.3)}) 11. Nb3 {[%emt 0:08:01]} a5 {[%emt 0:05:02]} 12. Qg4 {[%emt 0:04:06]} Kf8 {[%emt 0:05:12]} 13. Be3 {[%emt 0:09:09]} Nd7 {[%emt 0:23:32]} 14. f4 {[%emt 0:01:11]} c5 {[%emt 0:01:29]} 15. c4 {[%emt 0:04:10]} d4 {[%emt 0:00:31]} 16. Bf2 {[%emt 0:05:51]} g6 {[%emt 0:04:29]} 17. Nd2 {[%emt 0:03:56]} Kg7 {[%emt 0:01:27]} 18. Rae1 {[%emt 0:02:55]} Rb8 {[%emt 0:01:34]} 19. b3 {[%emt 0:01:26]} a4 {[%emt 0:05:08]} 20. Bc2 {[%emt 0:04:34]} axb3 {[%emt 0:00:18]} 21. axb3 {[%emt 0:00:06]} Rb6 {[%emt 0:00:51]} 22. Qg3 {[%emt 0:07:49]} h5 {[%emt 0:05:20]} 23. Ne4 {[%emt 0:01:12]} Bb7 {[%emt 0:02:14]} 24. Ng5 {[%emt 0:02:33]} Rh6 {[%emt 0:02:22]} 25. h4 {[%emt 0:02:31]} Kf8 {[%emt 0:12:24]} 26. Ra1 {[%emt 0:03:48]} Nb8 {[%emt 0:00:57]} 27. Be1 {[%emt 0:01:42]} Nc6 {[%emt 0:00:06]} 28. Be4 {[%emt 0:00:26]} (28. Bd2 $1 $18 d3 29. Qxd3 (29. Bxd3 Rxb3 30. Nxe6+ fxe6 $15) 29... Qxd3) 28... d3 $16 {[%emt 0:00:45]} 29. Kh2 {[%emt 0:01:54]} (29. Bxd3 $6 Rxb3 30. Rd1 Nd4 $15) (29. Qxd3 $6 Qxd3 30. Bxd3 Rh8 $11) 29... d2 {[%emt 0:01:35]} 30. Bf2 {[%emt 0:01:49]} Nd4 {[%emt 0:01:15]} 31. Bxb7 {[%emt 0:01:34]} Rxb7 {[%emt 0:00:04]} 32. Bxd4 {[%emt 0:01:33]} Qxd4 {[%emt 0:00:03]} 33. Rfd1 {[%emt 0:04:32]} Qb2 {[%emt 0:01:12]} 34. Ne4 {[%emt 0:00:42]} (34. Qe3 $14 Kg7 35. Ra4 (35. Rxd2 $2 Qxa1 36. Qf3 Ra7 $19) (35. Qxd2 Qxd2 36. Rxd2 Rh8 $16)) 34... Rxb3 $11 {[%emt 0:01:26]} 35. Nf6 {[%emt 0:00:31]} Kg7 {[%emt 0:01:09]} (35... Rxg3 36. Ra8+) (35... Rh8 $5 36. Qg5 $8 Kg7 $11) 36. Ra8 $2 {[%emt 0:00:30]} (36. Qg5 $11 {and White has nothing to worry.} Rh8 (36... Bxf6 37. Qxf6+ Kg8 38. Rxd2) 37. Ra7) 36... Rh8 $1 $19 {[%emt 0:00:44]} 37. Rxh8 {[%emt 0:00:07]} Kxh8 $2 {[%emt 0:00:07]} (37... Bxf6 $19 38. exf6+ Kxh8) 38. Qg5 $15 {[%emt 0:00:43]} Bf8 {[%emt 0:01:00]} (38... Bxf6 $1 $15 39. Qxf6+ Kg8 40. Qd8+ Kh7 41. Qxd2 Qxd2 42. Rxd2 Rc3) 39. Ne4 $2 {[%emt 0:00:22][%mdl 8192]} (39. Nd7 $11 Qd4 40. Nxf8) 39... Rd3 $2 {[%emt 0:00:21]} (39... Qd4 $1 $19 {[%cal Rd4e4]} 40. Nxd2 Rb2) 40. Qf6+ $1 $11 {[%emt 0:00:55]} Kg8 {[%emt 0:00:07]} 41. Ng5 {[%emt 0:03:41]} Qb7 {[%emt 0:11:00]} 42. Nxe6 $1 {[%emt 0:01:29]} Qe7 {[%emt 0:02:09]} 43. Ng5 $1 {[%emt 0:05:02]} Qxf6 {[%emt 0:00:19]} 44. exf6 {[%emt 0:00:05]} Bd6 {[%emt 0:00:10]} 45. g3 {[%emt 0:00:55]} Bc7 {[%emt 0:00:11]} 46. Kg2 $1 {[%emt 0:00:22]} Ba5 {[%emt 0:04:05]} 47. Nf3 {[%emt 0:03:47]} Bc3 {[%emt 0:04:41]} 48. Kf2 {[%emt 0:00:21]} Bxf6 {[%emt 0:00:15]} 49. Rxd2 {[%emt 0:00:31]} Rc3 {[%emt 0:00:05]} 50. Ne5 {[%emt 0:09:45]} Bxe5 {[%emt 0:01:08]} 51. Rd8+ {[%emt 0:00:39]} Kg7 {[%emt 0:00:04]} 52. fxe5 {[%emt 0:00:04]} Rxc4 {[%emt 0:00:58]} 53. Kf3 {[%emt 0:02:31] [#]} (53. Rc8 $15) 53... Rc1 {[%emt 0:03:25]} ({Black should try} 53... Rg4 $1 $17 54. Rd7 Kf8) 54. Rc8 $15 {[%emt 0:00:24]} c4 {[%emt 0:00:07]} (54... Rc3+ $15 {should be considered.} 55. Kf4 Rc4+ 56. Kf3 Rc3+ 57. Kf4 Rc1) 55. Kf2 {[%emt 0:02:56]} (55. Ke4 $1 $11) 55... c3 {[%emt 0:00:41]} 56. Kf3 {[%emt 0:01:21] [#]} g5 {[%emt 0:01:25]} (56... c2 $1 $15 57. Kg2 Re1 58. Rxc2 Rxe5) 57. hxg5 $11 {[%emt 0:00:34]} Kg6 {[%emt 0:00:06]} 58. Rc5 $1 {[%emt 0:00:27]} Kf5 {[%emt 0:02:43]} 59. Kg2 {[%emt 0:02:01]} c2 {[%emt 0:05:28]} 60. Kh2 {[%emt 0:00:30]} Kxg5 {[%emt 0:00:48]} 61. e6+ {[%emt 0:00:07]} Kf6 {[%emt 0:00:06]} (61... f5 $5 62. e7 $8 Re1 $11) 62. exf7 {[%emt 0:00:15]} Kxf7 {[%emt 0:00:13]} 1/2-1/2

[Event "45th FIDE Olympiad 2024"]
[Site "Budapest"]
[Date "2024.09.16"]
[Round "6.33"]
[White "Than, Min Hlaing"]
[Black "Wu, Li"]
[Result "1/2-1/2"]
[WhiteElo "2121"]
[BlackElo "2325"]
[PlyCount "86"]
[EventDate "2024.09.05"]
[EventType "team-tourn"]
[EventCountry "HUN"]
[WhiteTeam "Myanmar"]
[BlackTeam "Isle of Man"]
[WhiteTeamCountry "MYA"]
[BlackTeamCountry "IOM"]
[TimeControl "40/5400+30:1800+30"]

1. c4 Nf6 2. Nc3 g6 3. e4 d6 4. d4 Bg7 5. Be2 O-O 6. Nf3 Bg4 7. Be3 Nfd7 8. O-O Nc6 9. d5 Bxf3 10. Bxf3 Na5 11. Be2 Bxc3 12. bxc3 e5 13. dxe6 fxe6 14. f4 Qe7 15. Rf3 Rf7 16. Rg3 Raf8 17. f5 exf5 18. exf5 Rxf5 19. Bd3 Re5 20. Bd4 Rg5 21. Re3 Ne5 22. Qe2 c5 23. Re1 Nac6 24. Bxe5 Rxe5 25. Be4 Re8 26. Bd5+ Kg7 27. Rxe5 Qxe5 28. Qxe5+ Nxe5 29. Rb1 b6 30. a4 Nd3 31. a5 bxa5 32. Rb7+ Kh6 33. g3 a6 34. Ra7 a4 35. Rxa6 Re1+ 36. Kg2 Ra1 37. Ra7 Ne5 38. h4 Ng4 39. Be6 Ra2+ 40. Kf3 Ne5+ 41. Kf4 Rf2+ 42. Ke4 Re2+ 43. Kd5 Rd2+ 1/2-1/2

[Event "45th FIDE Olympiad 2024"]
[Site "Budapest"]
[Date "2024.09.16"]
[Round "6.34"]
[White "Pultinevicius, Paulius"]
[Black "Abasov, Nijat"]
[Result "1-0"]
[ECO "E49"]
[WhiteElo "2587"]
[BlackElo "2626"]
[Annotator "TA"]
[PlyCount "55"]
[EventDate "2024.09.05"]
[EventType "team-tourn"]
[EventCountry "HUN"]
[SourceTitle "playchess.com"]
[Source "ChessBase"]
[SourceQuality "1"]
[WhiteTeam "Lithuania"]
[BlackTeam "Azerbaijan"]
[WhiteTeamCountry "LTU"]
[BlackTeamCountry "AZE"]
[TimeControl "40/5400+30:1800+30"]

{[%evp 18,55,-12,-30,-20,-22,-21,-13,7,0,16,6,33,26,25,18,41,36,23,31,44,27,42,12,58,29,25,0,0,0,123,76,125,126,635,667,995,891,908,903]} 1. d4 {[%emt 0:00:02]} Nf6 {[%emt 0:00:05]} 2. c4 {[%emt 0:00:05]} e6 {[%emt 0:00:06]} 3. Nc3 {[%emt 0:00:04]} Bb4 {[%emt 0:00:05]} 4. e3 {[%emt 0:00:08]} O-O {[%emt 0:00:15]} 5. Bd3 {[%emt 0:00:13]} d5 {[%emt 0:00:07]} 6. a3 {[%emt 0:00:05]} Bxc3+ {[%emt 0:07:49]} 7. bxc3 {[%emt 0:00:07]} dxc4 {[%emt 0:00:07]} 8. Bxc4 {[%emt 0:00:05]} c5 {[%emt 0:00:05]} 9. Ne2 {[%emt 0:00:07]} Qc7 {[%emt 0:00:22]} 10. Ba2 {[%emt 0:00:46]} b6 {[%emt 0:03:04]} 11. O-O {[%emt 0:00:57]} Ba6 {[%emt 0:03:04]} 12. Bb2 {[%emt 0:12:59]} Rd8 {[%emt 0:03:58] The position is equal.} 13. Rc1 {[%emt 0:02:45]} e5 {[%emt 0:10:16][%cal Be6e5,Be5e4][%mdl 32]} 14. Re1 {[%emt 0:02:00]} c4 {[%emt 0:01:18]} 15. f3 {[%emt 0:10:33]} e4 {[%emt 0:01:31]} 16. Ng3 {[%emt 0:02:49]} Bb7 {[%emt 0:01:15]} 17. Qa4 {[%emt 0:11:11]} Rc8 {[%emt 0:01:49]} 18. Bb1 {[%emt 0:01:58]} Qe7 {[%emt 0:03:11]} 19. Qb5 {[%emt 0:01:48]} Qe6 {[%emt 0:14:29]} ({But not} 19... exf3 $6 20. e4 $16) 20. Rcd1 {[%emt 0:12:42]} (20. Qf5 {is more complex.} exf3 21. Qf4 fxg2 22. Bf5) 20... a6 {[%emt 0:11:21]} (20... exf3 $11 21. e4 fxg2) 21. Qg5 {[%emt 0:04:08][%cal Od4d5] Threatens to win with d5!} Nbd7 {[%emt 0:01:46]} 22. d5 {[%emt 0:13:08]} Bxd5 {[%emt 0:06:48]} 23. fxe4 {[%emt 0:02:20]} Bc6 {[%emt 0:04:48]} (23... Bb7 $1 $11 {keeps the balance.}) 24. Nf5 $16 {[%emt 0:02:00][%csl Gf5][%cal Rg5g7]} g6 {[%emt 0:00:07] [#]} (24... Ne8 $142) 25. Rf1 $1 $40 {[%emt 0:01:43][%mdl 128] Hoping for Rd6. White has strong attack. White is more active.} Ra7 $2 {[%emt 0:19:15][%mdl 8192]} (25... Qe5 $16) 26. Rd6 $18 {[%emt 0:05:44] White is clearly winning.} Qe8 {[%emt 0:00:06]} 27. e5 {[%emt 0:04:14]} Qxe5 {[%emt 0:00:29] [#]} 28. Rxf6 $1 {[%emt 0:00:11][%mdl 512] Weighted Error Value: White=0.08 (flawless) /Black=0.56.  Loses game:     	---       	Black=1      Mistake:       	---       	Black=3      Inaccurate:     	White=2     	Black=2      OK:         	White=6     	Black=6      Best:        	White=3     	---        Strong:       	White=1     	---} 1-0

[Event "45th FIDE Olympiad 2024"]
[Site "Budapest"]
[Date "2024.09.16"]
[Round "6.34"]
[White "Fabri, Henrik"]
[Black "Kyaw, Zay Ya"]
[Result "1-0"]
[WhiteElo "1936"]
[BlackElo "1818"]
[PlyCount "67"]
[EventDate "2024.09.05"]
[EventType "team-tourn"]
[EventCountry "HUN"]
[WhiteTeam "Isle of Man"]
[BlackTeam "Myanmar"]
[WhiteTeamCountry "IOM"]
[BlackTeamCountry "MYA"]
[TimeControl "40/5400+30:1800+30"]

1. e4 d5 2. exd5 Qxd5 3. Nc3 Qa5 4. d4 c6 5. Nf3 Bg4 6. h3 Bh5 7. g4 Bg6 8. h4 Nf6 9. h5 Be4 10. Bd2 Bxf3 11. Qxf3 Qb6 12. g5 Nfd7 13. Bc4 f6 14. Qe4 e5 15. dxe5 fxe5 16. Qf5 Qc5 17. Bf7+ Kd8 18. O-O-O Kc7 19. Ne4 Qb5 20. f4 exf4 21. Bxf4+ Kb6 22. Qe6 Nc5 23. Nxc5 Bxc5 24. Rh3 Ka6 25. Rb3 Qa4 26. Be3 Bf8 27. Rd4 Qa5 28. Bd2 Qxa2 29. Ra3+ Qxa3 30. bxa3 Bxa3+ 31. Kb1 Bc5 32. Ra4+ Kb6 33. Ba5+ Ka6 34. Bc7+ 1-0